fUSD/lending_fUSD_20260628
["ID","MTS","AMOUNT","RATE_DAILY","PERIOD"]
[426560966,1782592257000,-500.0,0.00037273,5]
[426560963,1782592257000,-500.0,0.00037273,5]
[426560960,1782592257000,-500.0,0.00037273,5]
[426560959,1782592257000,-500.0,0.00037273,5]
[426560956,1782592257000,-500.0,0.00037273,5]
[426560941,1782592257000,-500.0,0.00037273,12]
[426560949,1782592257000,-500.0,0.00037273,2]
[426560955,1782592257000,-500.0,0.00037273,5]
[426560910,1782592257000,-500.0,0.00037273,8]
[426560934,1782592257000,-500.0,0.00037273,12]
[426560907,1782592257000,-500.0,0.00037273,14]
[426560908,1782592257000,-500.0,0.00037273,14]
[426560909,1782592257000,-509.71498391,0.00037273,14]
[426560911,1782592257000,-162.09989934,0.00037273,8]
[426560912,1782592257000,-500.0,0.00037273,7]
[426560915,1782592257000,-500.0,0.00037273,7]
[426560917,1782592257000,-500.0,0.00037273,7]
[426560919,1782592257000,-500.0,0.00037273,7]
[426560918,1782592257000,-500.0,0.00037273,7]
[426560913,1782592257000,-500.0,0.00037273,7]
[426560914,1782592257000,-500.0,0.00037273,7]
[426560916,1782592257000,-500.0,0.00037273,7]
[426560921,1782592257000,-500.0,0.00037273,7]
[426560920,1782592257000,-500.0,0.00037273,7]
[426560926,1782592257000,-500.0,0.00037273,12]
[426560923,1782592257000,-500.0,0.00037273,12]
[426560925,1782592257000,-500.0,0.00037273,12]
[426560922,1782592257000,-331.1762678,0.00037273,7]
[426560929,1782592257000,-500.0,0.00037273,12]
[426560927,1782592257000,-500.0,0.00037273,12]
[426560930,1782592257000,-500.0,0.00037273,12]
[426560924,1782592257000,-500.0,0.00037273,12]
[426560928,1782592257000,-500.0,0.00037273,12]
[426560933,1782592257000,-500.0,0.00037273,12]
[426560935,1782592257000,-500.0,0.00037273,12]
[426560938,1782592257000,-500.0,0.00037273,12]
[426560957,1782592257000,-500.0,0.00037273,5]
[426560931,1782592257000,-500.0,0.00037273,12]
[426560962,1782592257000,-500.0,0.00037273,5]
[426560993,1782592257000,-1898.51,0.00037273,2]
[426560996,1782592257000,-1898.51,0.00037273,2]
[426560998,1782592257000,-1898.51,0.00037273,2]
[426560992,1782592257000,-1898.51,0.00037273,2]
[426560995,1782592257000,-1898.51,0.00037273,2]
[426560997,1782592257000,-1898.51,0.00037273,2]
[426561005,1782592257000,-12016.08,0.00037273,11]
[426561003,1782592257000,-1898.67607749,0.00037273,2]
[426561006,1782592257000,-12016.08,0.00037273,11]
[426561004,1782592257000,-12016.08,0.00037273,11]
[426561002,1782592257000,-1898.51,0.00037273,2]
[426561008,1782592257000,-12016.08,0.00037273,11]
[426560999,1782592257000,-1898.51,0.00037273,2]
[426561011,1782592257000,-12016.08,0.00037273,11]
[426561010,1782592257000,-12016.08,0.00037273,11]
[426561009,1782592257000,-12016.08,0.00037273,11]
[426561012,1782592257000,-12016.08,0.00037273,11]
[426561014,1782592257000,-12016.08,0.00037273,11]
[426561015,1782592257000,-12016.08,0.00037273,11]
[426561016,1782592257000,-12016.08,0.00037273,11]
[426561013,1782592257000,-12016.08,0.00037273,11]
[426561017,1782592257000,-12016.08,0.00037273,11]
[426561020,1782592257000,-12016.08,0.00037273,11]
[426561019,1782592257000,-12016.08,0.00037273,11]
[426561021,1782592257000,-12016.08,0.00037273,11]
[426561018,1782592257000,-12016.08,0.00037273,11]
[426561007,1782592257000,-12016.08,0.00037273,11]
[426560994,1782592257000,-1898.51,0.00037273,2]
[426560965,1782592257000,-500.0,0.00037273,5]
[426560989,1782592257000,-1898.51,0.00037273,2]
[426560958,1782592257000,-500.0,0.00037273,5]
[426560968,1782592257000,-500.0,0.00037273,5]
[426560967,1782592257000,-500.0,0.00037273,5]
[426560970,1782592257000,-500.0,0.00037273,5]
[426560969,1782592257000,-500.0,0.00037273,5]
[426560971,1782592257000,-388.03438657,0.00037273,5]
[426560973,1782592257000,-500.0,0.00037273,8]
[426560991,1782592257000,-1898.51,0.00037273,2]
[426560976,1782592257000,-500.0,0.00037273,8]
[426560974,1782592257000,-500.0,0.00037273,8]
[426560977,1782592257000,-500.0,0.00037273,8]
[426560972,1782592257000,-500.0,0.00037273,8]
[426560987,1782592257000,-1898.51,0.00037273,2]
[426560975,1782592257000,-500.0,0.00037273,8]
[426560985,1782592257000,-1898.51,0.00037273,2]
[426560979,1782592257000,-497.47022078,0.00037273,8]
[426561001,1782592257000,-1898.51,0.00037273,2]
[426560990,1782592257000,-1898.51,0.00037273,2]
[426561000,1782592257000,-1898.51,0.00037273,2]
[426560984,1782592257000,-1898.51,0.00037273,2]
[426560986,1782592257000,-1898.51,0.00037273,2]
[426560988,1782592257000,-1898.51,0.00037273,2]
[426560982,1782592257000,-1898.51,0.00037273,2]
[426560981,1782592257000,-1898.51,0.00037273,2]
[426560978,1782592257000,-500.0,0.00037273,8]
[426560980,1782592257000,-1898.51,0.00037273,2]
[426560983,1782592257000,-1898.51,0.00037273,2]
[426561056,1782592258000,-500.0,0.00037273,2]
[426561068,1782592258000,-478.0,0.00037273,2]
[426561064,1782592258000,-500.0,0.00037273,2]
[426561070,1782592258000,-500.0,0.00037273,10]
[426561057,1782592258000,-500.0,0.00037273,2]
[426561053,1782592258000,-857.58053919,0.00037273,2]
[426561058,1782592258000,-500.0,0.00037273,2]
[426561059,1782592258000,-500.0,0.00037273,2]
[426561054,1782592258000,-10431.32103646,0.00037273,2]
[426561052,1782592258000,-857.57,0.00037273,2]
[426561055,1782592258000,-500.0,0.00037273,2]
[426561060,1782592258000,-500.0,0.00037273,2]
[426561078,1782592258000,-500.0,0.00037273,10]
[426561067,1782592258000,-500.0,0.00037273,2]
[426561069,1782592258000,-500.0,0.00037273,10]
[426561062,1782592258000,-500.0,0.00037273,2]
[426561065,1782592258000,-500.0,0.00037273,2]
[426561063,1782592258000,-500.0,0.00037273,2]
[426561071,1782592258000,-500.0,0.00037273,10]
[426561066,1782592258000,-500.0,0.00037273,2]
[426561073,1782592258000,-500.0,0.00037273,10]
[426561072,1782592258000,-500.0,0.00037273,10]
[426561076,1782592258000,-500.0,0.00037273,10]
[426561075,1782592258000,-500.0,0.00037273,10]
[426561080,1782592258000,-500.0,0.00037273,10]
[426561051,1782592258000,-857.57,0.00037273,2]
[426561061,1782592258000,-500.0,0.00037273,2]
[426561049,1782592258000,-857.57,0.00037273,2]
[426561036,1782592258000,-857.57,0.00037273,2]
[426561048,1782592258000,-857.57,0.00037273,2]
[426561079,1782592258000,-500.0,0.00037273,10]
[426561022,1782592258000,-12016.08,0.00037273,11]
[426561023,1782592258000,-12016.08,0.00037273,11]
[426561025,1782592258000,-12016.08,0.00037273,11]
[426561024,1782592258000,-12016.08,0.00037273,11]
[426561029,1782592258000,-198.08968967,0.00037273,7]
[426561030,1782592258000,-857.57,0.00037273,2]
[426561035,1782592258000,-857.57,0.00037273,2]
[426561033,1782592258000,-857.57,0.00037273,2]
[426561032,1782592258000,-857.57,0.00037273,2]
[426561026,1782592258000,-12016.08,0.00037273,11]
[426561028,1782592258000,-500.0,0.00037273,7]
[426561050,1782592258000,-857.57,0.00037273,2]
[426561027,1782592258000,-12016.16099692,0.00037273,11]
[426561031,1782592258000,-857.57,0.00037273,2]
[426561040,1782592258000,-857.57,0.00037273,2]
[426561044,1782592258000,-857.57,0.00037273,2]
[426561042,1782592258000,-857.57,0.00037273,2]
[426561043,1782592258000,-857.57,0.00037273,2]
[426561038,1782592258000,-857.57,0.00037273,2]
[426561037,1782592258000,-857.57,0.00037273,2]
[426561039,1782592258000,-857.57,0.00037273,2]
[426561041,1782592258000,-857.57,0.00037273,2]
[426561046,1782592258000,-857.57,0.00037273,2]
[426561047,1782592258000,-857.57,0.00037273,2]
[426561045,1782592258000,-857.57,0.00037273,2]
[426561034,1782592258000,-857.57,0.00037273,2]
[426561077,1782592258000,-500.0,0.00037273,10]
[426561083,1782592258000,-500.0,0.00037273,10]
[426561082,1782592258000,-500.0,0.00037273,10]
[426561114,1782592258000,-1204.63,0.00037273,7]
[426561116,1782592258000,-1204.63,0.00037273,7]
[426561113,1782592258000,-1204.63,0.00037273,7]
[426561115,1782592258000,-1204.63,0.00037273,7]
[426561117,1782592258000,-1204.70556195,0.00037273,7]
[426561118,1782592258000,-500.0,0.00037273,8]
[426561119,1782592258000,-500.0,0.00037273,8]
[426561121,1782592258000,-500.0,0.00037273,8]
[426561131,1782592258000,-500.0,0.00037273,8]
[426561120,1782592258000,-500.0,0.00037273,8]
[426561125,1782592258000,-500.0,0.00037273,8]
[426561124,1782592258000,-500.0,0.00037273,8]
[426561112,1782592258000,-1204.63,0.00037273,7]
[426561123,1782592258000,-500.0,0.00037273,8]
[426561122,1782592258000,-500.0,0.00037273,8]
[426561127,1782592258000,-500.0,0.00037273,8]
[426561126,1782592258000,-500.0,0.00037273,8]
[426561130,1782592258000,-500.0,0.00037273,8]
[426561128,1782592258000,-500.0,0.00037273,8]
[426561132,1782592258000,-500.0,0.00037273,8]
[426561134,1782592258000,-609.3540758,0.00037273,8]
[426561074,1782592258000,-500.0,0.00037273,10]
[426561135,1782592258000,-803.66,0.00037273,7]
[426561133,1782592258000,-500.0,0.00037273,8]
[426561138,1782592258000,-803.66,0.00037273,7]
[426561137,1782592258000,-803.66,0.00037273,7]
[426561129,1782592258000,-500.0,0.00037273,8]
[426561111,1782592258000,-1204.63,0.00037273,7]
[426561136,1782592258000,-803.66,0.00037273,7]
[426561109,1782592258000,-1204.63,0.00037273,7]
[426561084,1782592258000,-500.0,0.00037273,10]
[426561081,1782592258000,-500.0,0.00037273,10]
[426561086,1782592258000,-500.0,0.00037273,10]
[426561085,1782592258000,-500.0,0.00037273,10]
[426561090,1782592258000,-500.0,0.00037273,10]
[426561088,1782592258000,-500.0,0.00037273,10]
[426561094,1782592258000,-1204.63,0.00037273,7]
[426561087,1782592258000,-500.0,0.00037273,10]
[426561089,1782592258000,-500.0,0.00037273,10]
[426561095,1782592258000,-1204.63,0.00037273,7]
[426561091,1782592258000,-500.0,0.00037273,10]
[426561092,1782592258000,-182.18464292,0.00037273,10]
[426561093,1782592258000,-495.58392004,0.00037273,14]
[426561097,1782592258000,-1204.63,0.00037273,7]
[426561103,1782592258000,-1204.63,0.00037273,7]
[426561096,1782592258000,-1204.63,0.00037273,7]
[426561104,1782592258000,-1204.63,0.00037273,7]
[426561105,1782592258000,-1204.63,0.00037273,7]
[426561101,1782592258000,-1204.63,0.00037273,7]
[426561099,1782592258000,-1204.63,0.00037273,7]
[426561106,1782592258000,-1204.63,0.00037273,7]
[426561100,1782592258000,-1204.63,0.00037273,7]
[426561102,1782592258000,-1204.63,0.00037273,7]
[426561108,1782592258000,-1204.63,0.00037273,7]
[426561107,1782592258000,-1204.63,0.00037273,7]
[426561098,1782592258000,-1204.63,0.00037273,7]
[426561110,1782592258000,-1204.63,0.00037273,7]
[426561176,1782592259000,-150.0,0.00037273,2]
[426561157,1782592259000,-803.66,0.00037273,7]
[426561159,1782592259000,-153.99428602,0.00037273,2]
[426561163,1782592259000,-150.0,0.00037273,2]
[426561168,1782592259000,-150.0,0.00037273,2]
[426561167,1782592259000,-150.0,0.00037273,2]
[426561170,1782592259000,-150.0,0.00037273,2]
[426561175,1782592259000,-150.0,0.00037273,2]
[426561171,1782592259000,-199.6172265,0.00037273,2]
[426561172,1782592259000,-293.18488974,0.00037273,2]
[426561187,1782592259000,-150.0,0.00037273,2]
[426561173,1782592259000,-150.0,0.00037273,2]
[426561174,1782592259000,-150.0,0.00037273,2]
[426561177,1782592259000,-150.0,0.00037273,2]
[426561179,1782592259000,-150.0,0.00037273,2]
[426561178,1782592259000,-150.0,0.00037273,2]
[426561189,1782592259000,-517.16774134,0.00037273,2]
[426561180,1782592259000,-150.0,0.00037273,2]
[426561182,1782592259000,-150.0,0.00037273,2]
[426561181,1782592259000,-150.0,0.00037273,2]
[426561183,1782592259000,-150.0,0.00037273,2]
[426561169,1782592259000,-150.0,0.00037273,2]
[426561155,1782592259000,-803.66,0.00037273,7]
[426561148,1782592259000,-803.66,0.00037273,7]
[426561162,1782592259000,-150.0,0.00037273,2]
[426561186,1782592259000,-150.0,0.00037273,2]
[426561140,1782592259000,-803.66,0.00037273,7]
[426561142,1782592259000,-803.66,0.00037273,7]
[426561139,1782592259000,-803.66,0.00037273,7]
[426561141,1782592259000,-803.66,0.00037273,7]
[426561143,1782592259000,-803.66,0.00037273,7]
[426561144,1782592259000,-803.66,0.00037273,7]
[426561147,1782592259000,-803.66,0.00037273,7]
[426561146,1782592259000,-803.66,0.00037273,7]
[426561149,1782592259000,-803.66,0.00037273,7]
[426561164,1782592259000,-150.0,0.00037273,2]
[426561151,1782592259000,-803.66,0.00037273,7]
[426561145,1782592259000,-803.66,0.00037273,7]
[426561153,1782592259000,-803.66,0.00037273,7]
[426561152,1782592259000,-803.66,0.00037273,7]
[426561154,1782592259000,-803.66,0.00037273,7]
[426561156,1782592259000,-803.66,0.00037273,7]
[426561158,1782592259000,-803.88844716,0.00037273,7]
[426561161,1782592259000,-150.0,0.00037273,2]
[426561166,1782592259000,-150.0,0.00037273,2]
[426561160,1782592259000,-150.0,0.00037273,2]
[426561165,1782592259000,-150.0,0.00037273,2]
[426561150,1782592259000,-803.66,0.00037273,7]
[426561188,1782592259000,-150.0,0.00037273,2]
[426561217,1782592259000,-749.0,0.00037273,2]
[426561185,1782592259000,-150.0,0.00037273,2]
[426561216,1782592259000,-749.0,0.00037273,2]
[426561218,1782592259000,-749.0,0.00037273,2]
[426561219,1782592259000,-749.0,0.00037273,2]
[426561221,1782592259000,-749.0,0.00037273,2]
[426561220,1782592259000,-749.0,0.00037273,2]
[426561222,1782592259000,-749.0,0.00037273,2]
[426561225,1782592259000,-749.0,0.00037273,2]
[426561223,1782592259000,-749.0,0.00037273,2]
[426561227,1782592259000,-749.0,0.00037273,2]
[426561224,1782592259000,-749.0,0.00037273,2]
[426561230,1782592259000,-749.0,0.00037273,2]
[426561231,1782592259000,-749.0,0.00037273,2]
[426561229,1782592259000,-749.0,0.00037273,2]
[426561228,1782592259000,-749.0,0.00037273,2]
[426561232,1782592259000,-749.0,0.00037273,2]
[426561234,1782592259000,-749.0,0.00037273,2]
[426561237,1782592259000,-749.0,0.00037273,2]
[426561233,1782592259000,-749.0,0.00037273,2]
[426561236,1782592259000,-749.0,0.00037273,2]
[426561235,1782592259000,-749.0,0.00037273,2]
[426561184,1782592259000,-150.0,0.00037273,2]
[426561215,1782592259000,-749.0,0.00037273,2]
[426561214,1782592259000,-749.0,0.00037273,2]
[426561226,1782592259000,-749.0,0.00037273,2]
[426561211,1782592259000,-749.0,0.00037273,2]
[426561191,1782592259000,-500.0,0.00037273,2]
[426561213,1782592259000,-749.0,0.00037273,2]
[426561192,1782592259000,-150.0,0.00037273,2]
[426561190,1782592259000,-150.0,0.00037273,2]
[426561201,1782592259000,-150.0,0.00037273,2]
[426561194,1782592259000,-150.0,0.00037273,2]
[426561198,1782592259000,-500.0,0.00037273,2]
[426561199,1782592259000,-150.0,0.00037273,2]
[426561196,1782592259000,-500.0,0.00037273,2]
[426561195,1782592259000,-150.0,0.00037273,2]
[426561197,1782592259000,-150.0,0.00037273,2]
[426561193,1782592259000,-500.0,0.00037273,2]
[426561203,1782592259000,-150.0,0.00037273,2]
[426561200,1782592259000,-500.0,0.00037273,2]
[426561210,1782592259000,-780.1944484,0.00037273,2]
[426561208,1782592259000,-150.0,0.00037273,2]
[426561207,1782592259000,-150.0,0.00037273,2]
[426561209,1782592259000,-150.0,0.00037273,2]
[426561202,1782592259000,-500.0,0.00037273,2]
[426561205,1782592259000,-150.0,0.00037273,2]
[426561204,1782592259000,-150.0,0.00037273,2]
[426561206,1782592259000,-150.0,0.00037273,2]
[426561212,1782592259000,-749.0,0.00037273,2]
[426561269,1782592260000,-500.0,0.00037273,14]
[426561266,1782592260000,-262.97032628,0.00037273,2]
[426561258,1782592260000,-1000.0,0.00037273,2]
[426561262,1782592260000,-1000.0,0.00037273,2]
[426561265,1782592260000,-181.745622,0.00037273,8]
[426561270,1782592260000,-173.68624839,0.00037273,14]
[426561281,1782592260000,-651206.76392753,0.00037273,30]
[426561264,1782592260000,-44327.55382683,0.00037273,2]
[426561280,1782592260000,-6642.59499755,0.00037273,30]
[426561277,1782592260000,-609221.80178395,0.00037273,30]
[426561271,1782592260000,-17315.48879598,0.00037273,10]
[426561273,1782592260000,-24848150.43875789,0.00037273,30]
[426561275,1782592260000,-94885.19749409,0.00037273,30]
[426561274,1782592260000,-122822.99480251,0.00037273,30]
[426561279,1782592260000,-20942.82023603,0.00037273,30]
[426561276,1782592260000,-576664.17875045,0.00037273,30]
[426561278,1782592260000,-9496.08,0.00037273,60]
[426561287,1782592260000,-690433.89469351,0.00037273,30]
[426561286,1782592260000,-16257.12524877,0.00037273,30]
[426561259,1782592260000,-1000.0,0.00037273,2]
[426561272,1782592260000,-2375.06756733,0.00037273,15]
[426561268,1782592260000,-500.0,0.00037273,14]
[426561238,1782592260000,-749.0,0.00037273,2]
[426561260,1782592260000,-1000.0,0.00037273,2]
[426561282,1782592260000,-4593.02517396,0.00037273,30]
[426561239,1782592260000,-749.0,0.00037273,2]
[426561241,1782592260000,-749.0,0.00037273,2]
[426561243,1782592260000,-749.0,0.00037273,2]
[426561240,1782592260000,-749.0,0.00037273,2]
[426561242,1782592260000,-749.0,0.00037273,2]
[426561255,1782592260000,-1000.0,0.00037273,2]
[426561245,1782592260000,-749.0,0.00037273,2]
[426561247,1782592260000,-749.0,0.00037273,2]
[426561256,1782592260000,-1000.0,0.00037273,2]
[426561263,1782592260000,-103519.49479638,0.00037273,20]
[426561244,1782592260000,-749.0,0.00037273,2]
[426561248,1782592260000,-749.0,0.00037273,2]
[426561254,1782592260000,-1000.0,0.00037273,2]
[426561253,1782592260000,-1000.0,0.00037273,2]
[426561250,1782592260000,-1654.16664675,0.00037273,2]
[426561252,1782592260000,-1000.0,0.00037273,2]
[426561249,1782592260000,-749.0,0.00037273,2]
[426561251,1782592260000,-1000.0,0.00037273,2]
[426561257,1782592260000,-1000.0,0.00037273,2]
[426561261,1782592260000,-1000.0,0.00037273,2]
[426561267,1782592260000,-151.76639872,0.00037273,2]
[426561246,1782592260000,-749.0,0.00037273,2]
[426561285,1782592260000,-25000.0,0.00037273,30]
[426561302,1782592260000,-480.7,0.00037273,2]
[426561283,1782592260000,-341728.15575972,0.00037273,30]
[426561313,1782592260000,-483.84282515,0.00037273,30]
[426561314,1782592260000,-19657.51556028,0.00037273,30]
[426561316,1782592260000,-3425304.33626814,0.00037273,30]
[426561318,1782592260000,-7259.19934862,0.00037273,30]
[426561322,1782592260000,-65060.0,0.00037273,30]
[426561321,1782592260000,-10031.81763645,0.00037273,30]
[426561320,1782592260000,-590950.71299905,0.00037273,30]
[426561323,1782592260000,-30470.0,0.00037273,60]
[426561284,1782592260000,-412.40907597,0.00037273,2]
[426561319,1782592260000,-502421.312081,0.00037273,30]
[426561324,1782592260000,-36186.95316124,0.00037273,30]
[426561325,1782592260000,-119183.1799466,0.00037273,30]
[426561327,1782592260000,-17495.27769166,0.00037273,35]
[426561330,1782592260000,-30496.28393777,0.00037273,30]
[426561329,1782592260000,-14336.88692597,0.00037273,30]
[426561328,1782592260000,-63228.86962219,0.00037273,30]
[426561326,1782592260000,-14496.6710774,0.00037273,30]
[426561331,1782592260000,-6078685.10598197,0.00037273,30]
[426561333,1782592260000,-500.0,0.00037273,2]
[426561332,1782592260000,-1022343.0,0.00037273,90]
[426561334,1782592260000,-500.0,0.00037273,2]
[426561312,1782592260000,-4631.74239574,0.00037273,30]
[426561315,1782592260000,-7259.36599041,0.00037273,30]
[426561317,1782592260000,-714.38911177,0.00037273,30]
[426561309,1782592260000,-5742.47310323,0.00037273,30]
[426561310,1782592260000,-3525.60542268,0.00037273,30]
[426561290,1782592260000,-50000.0,0.00037273,30]
[426561289,1782592260000,-160.87715139,0.00037273,30]
[426561291,1782592260000,-401642.33601326,0.00037273,30]
[426561288,1782592260000,-16612.32899834,0.00037273,30]
[426561294,1782592260000,-500.0,0.00037273,2]
[426561300,1782592260000,-500.0,0.00037273,2]
[426561295,1782592260000,-500.0,0.00037273,2]
[426561292,1782592260000,-500.0,0.00037273,2]
[426561297,1782592260000,-500.0,0.00037273,2]
[426561299,1782592260000,-500.0,0.00037273,2]
[426561293,1782592260000,-500.0,0.00037273,2]
[426561301,1782592260000,-500.0,0.00037273,2]
[426561308,1782592260000,-5133.10278247,0.00037273,30]
[426561306,1782592260000,-926.51793861,0.00037273,30]
[426561307,1782592260000,-48603946.37275635,0.00037273,30]
[426561304,1782592260000,-158.03166445,0.00037273,30]
[426561311,1782592260000,-54190.83185605,0.00037273,30]
[426561298,1782592260000,-500.0,0.00037273,2]
[426561303,1782592260000,-258.06298435,0.00037273,30]
[426561296,1782592260000,-500.0,0.00037273,2]
[426561305,1782592260000,-389.60559403,0.00037273,30]
[426561365,1782592261000,-1000000.0,0.00037273,50]
[426561360,1782592261000,-744206.0,0.00037273,30]
[426561362,1782592261000,-1000000.0,0.00037273,35]
[426561363,1782592261000,-1000000.0,0.00037273,40]
[426561366,1782592261000,-109125.13564555,0.00037273,2]
[426561367,1782592261000,-50000.0,0.00037273,61]
[426561364,1782592261000,-1000000.0,0.00037273,40]
[426561361,1782592261000,-1000000.0,0.00037273,30]
[426561368,1782592261000,-50000.0,0.00037273,62]
[426561369,1782592261000,-50000.0,0.00037273,63]
[426561359,1782592261000,-1000000.0,0.00037273,60]
[426561373,1782592261000,-150.0,0.00037273,2]
[426561372,1782592261000,-150.62108348,0.00037273,2]
[426561374,1782592261000,-150.0,0.00037273,2]
[426561376,1782592261000,-150.0,0.00037273,2]
[426561371,1782592261000,-50000.0,0.00037273,65]
[426561375,1782592261000,-150.01424049,0.00037273,2]
[426561377,1782592261000,-500.0418539,0.00037273,2]
[426561380,1782592261000,-1810.59,0.00037273,10]
[426561378,1782592261000,-500.0,0.00037273,2]
[426561370,1782592261000,-50000.0,0.00037273,64]
[426561356,1782592261000,-161.45,0.00037273,60]
[426561381,1782592261000,-1810.59,0.00037273,10]
[426561355,1782592261000,-50000.0,0.00037273,60]
[426561335,1782592261000,-500.0,0.00037273,2]
[426561336,1782592261000,-500.0,0.00037273,2]
[426561339,1782592261000,-500.0,0.00037273,2]
[426561338,1782592261000,-500.0,0.00037273,2]
[426561343,1782592261000,-500.0,0.00037273,2]
[426561342,1782592261000,-500.0,0.00037273,2]
[426561341,1782592261000,-500.0,0.00037273,2]
[426561340,1782592261000,-500.0,0.00037273,2]
[426561344,1782592261000,-500.0,0.00037273,2]
[426561358,1782592261000,-129064.94584074,0.00037273,2]
[426561346,1782592261000,-50000.0,0.00037273,50]
[426561347,1782592261000,-50000.0,0.00037273,51]
[426561348,1782592261000,-50000.0,0.00037273,52]
[426561349,1782592261000,-50000.0,0.00037273,53]
[426561350,1782592261000,-50000.0,0.00037273,54]
[426561351,1782592261000,-50000.0,0.00037273,55]
[426561352,1782592261000,-50000.0,0.00037273,56]
[426561354,1782592261000,-50000.0,0.00037273,59]
[426561357,1782592261000,-500.71411667,0.00037273,5]
[426561353,1782592261000,-50000.0,0.00037273,58]
[426561345,1782592261000,-517.81800046,0.00037273,2]
[426561385,1782592261000,-1810.59,0.00037273,10]
[426561337,1782592261000,-500.0,0.00037273,2]
[426561379,1782592261000,-1810.59,0.00037273,10]
[426561408,1782592261000,-270.0231634,0.00037273,60]
[426561412,1782592261000,-170.84277566,0.00037273,8]
[426561409,1782592261000,-267.23910975,0.00037273,2]
[426561410,1782592261000,-252.46191786,0.00037273,90]
[426561414,1782592261000,-758.47362686,0.00037273,30]
[426561424,1782592261000,-51750.0,0.00037273,30]
[426561420,1782592261000,-2597.95690081,0.00037273,2]
[426561413,1782592261000,-825710.9,0.00037273,60]
[426561419,1782592261000,-3200.0,0.00037273,60]
[426561407,1782592261000,-8000.0,0.00037273,31]
[426561417,1782592261000,-3342.3740428,0.00037273,90]
[426561423,1782592261000,-386.83201689,0.00037273,7]
[426561422,1782592261000,-405.91985418,0.00037273,7]
[426561416,1782592261000,-160.07919922,0.00037273,30]
[426561418,1782592261000,-166.90566046,0.00037273,2]
[426561425,1782592261000,-3299.7988184,0.00037273,60]
[426561387,1782592261000,-1810.59,0.00037273,10]
[426561428,1782592261000,-500.0,0.00037273,14]
[426561427,1782592261000,-893617.2572903,0.00037273,30]
[426561426,1782592261000,-506.45537813,0.00037273,7]
[426561421,1782592261000,-434.7210793,0.00037273,2]
[426561411,1782592261000,-202.60316954,0.00037273,11]
[426561415,1782592261000,-2033.69887749,0.00037273,60]
[426561402,1782592261000,-1810.60616117,0.00037273,10]
[426561406,1782592261000,-151.39,0.00037273,30]
[426561384,1782592261000,-1810.59,0.00037273,10]
[426561382,1782592261000,-1810.59,0.00037273,10]
[426561383,1782592261000,-1810.59,0.00037273,10]
[426561388,1782592261000,-1810.59,0.00037273,10]
[426561389,1782592261000,-1810.59,0.00037273,10]
[426561390,1782592261000,-1810.59,0.00037273,10]
[426561400,1782592261000,-1810.59,0.00037273,10]
[426561391,1782592261000,-1810.59,0.00037273,10]
[426561392,1782592261000,-1810.59,0.00037273,10]
[426561386,1782592261000,-1810.59,0.00037273,10]
[426561398,1782592261000,-1810.59,0.00037273,10]
[426561404,1782592261000,-10392.95345965,0.00037273,2]
[426561393,1782592261000,-1810.59,0.00037273,10]
[426561403,1782592261000,-4999.999999,0.00037273,30]
[426561405,1782592261000,-251.82,0.00037273,30]
[426561397,1782592261000,-1810.59,0.00037273,10]
[426561401,1782592261000,-1810.59,0.00037273,10]
[426561394,1782592261000,-1810.59,0.00037273,10]